[Event "ESP-ch U1700 2024"]
[Site "Albacete"]
[Date "2024.08.28"]
[Round "3.7"]
[White "Jimenez Fernandez, Alejandro"]
[Black "Soler Fombuena, Sergi"]
[Result "0-1"]
[ECO "D05"]
[WhiteElo "1956"]
[BlackElo "1656"]
[Annotator "TA"]
[PlyCount "96"]
[EventDate "2024.08.27"]
[EventType "swiss"]
[EventCountry "ESP"]
[SourceTitle "playchess.com"]
[Source "ChessBase"]
[SourceQuality "1"]
[TimeControl "5400+30"]

{[%evp 13,96,15,0,0,-4,-10,0,-16,0,-19,-17,-13,-10,-56,-58,-81,-69,-75,-84,-79,-68,-76,-60,-67,-61,-104,-108,-123,-98,-124,-117,-153,-92,-98,-91,-94,-85,-82,-57,-66,-63,-90,-90,-177,-94,-89,-92,-95,-74,-133,-49,-98,-96,-178,-127,-158,0,0,281,291,608,553,970,600,6087,1390,1420,701,5583,5287,5287,5101,4627,4612,29972,29973,29975,29976,29979,29980,29980,29981,29981,29982,29983]} 1. Nf3 {[%emt 0:00:02]} d5 {[%emt 0:00:08]} 2. d4 {[%emt 0:00:09]} Nf6 {[%emt 0:00:12]} 3. e3 {[%emt 0:00:08]} e6 {[%emt 0:00:22]} 4. c4 {[%emt 0:00:22]} Be7 {[%emt 0:00:15]} 5. Nc3 {[%emt 0:00:08]} O-O {[%emt 0:00:27]} 6. Bd3 {[%emt 0:01:34]} b6 {[%emt 0:01:24]} 7. cxd5 {[%emt 0:02:30]} exd5 {[%emt 0:00:41]} 8. h3 {[%emt 0:02:11]} Bb7 {[%emt 0:00:38]} 9. O-O {[%emt 0:02:05]} Nbd7 {[%emt 0:01:46]} 10. Qc2 {[%emt 0:00:54] The position is equal.} c5 {[%emt 0:01:14]} 11. Bf5 {[%emt 0:12:09]} g6 {[%emt 0:01:29]} 12. Bxd7 {[%emt 0:00:11]} Qxd7 {[%emt 0:00:15]} 13. Ne5 {[%emt 0:01:20]} (13. b3 $11 {feels stronger.}) 13... Qe6 $15 {[%emt 0:01:17]} 14. Re1 {[%emt 0:09:55]} Rac8 {[%emt 0:01:08]} 15. Qe2 {[%emt 0:03:32]} Ne4 {[%emt 0:02:29]} 16. Nf3 {[%emt 0:17:59]} Rfe8 {[%emt 0:02:21]} 17. Bd2 {[%emt 0:01:49]} Bf6 {[%emt 0:02:36]} 18. Rac1 {[%emt 0:02:24]} Bg7 {[%emt 0:04:51] Black has more active pieces.} 19. dxc5 {[%emt 0:10:17]} bxc5 {[%emt 0:00:09]} 20. Qb5 {[%emt 0:00:38]} Qb6 {[%emt 0:12:58]} 21. Qxb6 {[%emt 0:02:14]} axb6 {[%emt 0:00:18]} 22. Rc2 {[%emt 0:05:09]} Re6 {[%emt 0:10:35]} (22... d4 $142 23. Nxe4 Bxe4) 23. Nxe4 $17 {[%emt 0:02:42]} dxe4 {[%emt 0:00:07]} 24. Nh2 {[%emt 0:00:09]} Ba6 {[%emt 0:02:26][%cal Bb7a6,Ba6d3,Bd3e4][%mdl 32] And now ...Bd3 would win. A strong pair of Bishops. White is weak on the light squares} 25. Bc3 {[%emt 0:01:25]} f6 {[%emt 0:00:11]} 26. Rd2 {[%emt 0:02:23]} Bd3 {[%emt 0:00:51]} 27. f3 {[%emt 0:01:24]} b5 {[%emt 0:06:32] [#] Threatens to win with ...b4.} 28. b3 {[%emt 0:01:50]} (28. a3 $17 {is a better defense.}) 28... c4 {[%emt 0:00:35]} (28... f5 $19 29. Bxg7 Kxg7 30. fxe4 fxe4 (30... Bxe4 31. Rc1 $15)) 29. bxc4 {[%emt 0:00:47]} bxc4 {[%emt 0:00:58]} 30. fxe4 {[%emt 0:00:23]} Bxe4 {[%emt 0:02:11]} 31. Kf2 {[%emt 0:02:54]} ({Better is} 31. Ng4) 31... Rce8 {[%emt 0:01:29]} ({Black should try} 31... f5 $17 32. Rc1 Rb6) 32. Nf1 {[%emt 0:01:33]} (32. a4 $15) 32... Bd3 {[%emt 0:01:22]} 33. Bd4 {[%emt 0:04:19] [#]} (33. a4 $17) 33... Bh6 {[%emt 0:01:19]} (33... f5 $1 $19 {...Bxd4 is the strong threat.} 34. Bxg7 Kxg7) 34. g4 {[%emt 0:01:58]} Bxf1 $2 {[%emt 0:00:37]} ({Black should play} 34... f5 $17 {Hoping for ...fxg4.} 35. gxf5 gxf5 (35... Bxf5 $2 36. a4 $17)) 35. Kxf1 $11 {[%emt 0:00:07]} Bxe3 $2 {[%emt 0:00:08][%mdl 8192]} (35... Re4 $11) 36. Rde2 $18 {[%emt 0:00:36]} Bxd4 $2 {[%emt 0:01:28]} (36... Rd8) 37. Rxe6 {[%emt 0:00:15]} Rxe6 {[%emt 0:01:23]} 38. Rxe6 {[%emt 0:00:04][%mdl 4096] Endgame. KR-KB} Be5 {[%emt 0:00:13]} 39. Ke2 {[%emt 0:00:35]} (39. Rxe5 $142 fxe5 40. a4) 39... Kf7 {[%emt 0:00:02]} 40. Rc6 {[%emt 0:00:14]} c3 {[%emt 0:00:08]} 41. Kd3 {[%emt 0:00:09]} Ke7 {[%emt 0:00:12]} 42. a4 {[%emt 0:00:10]} Kd7 {[%emt 0:00:07]} 43. Rxc3 {[%emt 0:02:14]} Bxc3 {[%emt 0:00:08]} 44. Kxc3 {[%emt 0:00:06] K3P-K3P. White mates.} Kc6 {[%emt 0:00:10]} 45. Kd4 {[%emt 0:00:06]} h5 {[%emt 0:01:05]} 46. gxh5 {[%emt 0:00:41]} gxh5 {[%emt 0:00:07]} 47. Ke4 {[%emt 0:00:07]} h4 {[%emt 0:00:39]} 48. Kf5 {[%emt 0:00:06]} Kd5 {[%emt 0:31:29][%mdl 32768] Weighted Error Value: White=0.20 (precise) /Black=0.67.  Loses game:     	---       	Black=1      Mistake:       	White=5     	Black=6      Inaccurate:     	White=3     	Black=2      OK:         	White=5     	Black=5      Best:        	White=4     	---       . Sensor Board Error (Ke4/e5)?} 0-1

[Event "ESP-ch U1700 2024"]
[Site "Albacete"]
[Date "2024.08.28"]
[Round "3.9"]
[White "Airos Martorell, Ignacio"]
[Black "Lopez Ortuno, Angel"]
[Result "1-0"]
[ECO "D02"]
[WhiteElo "1650"]
[BlackElo "1534"]
[Annotator "NA RC COMBH"]
[PlyCount "117"]
[EventDate "2024.08.27"]
[EventType "swiss"]
[EventCountry "ESP"]
[SourceTitle "playchess.com"]
[Source "ChessBase"]
[SourceQuality "1"]
[TimeControl "5400+30"]

1. d4 {[%emt 0:00:01]} Nf6 {[%emt 0:00:06]} 2. Nf3 {[%emt 0:00:24]} d5 {[%emt 0:00:05]} 3. Bf4 {[%emt 0:00:53]} e6 {[%emt 0:01:48]} 4. e3 {[%emt 0:01:13]} c5 {[%emt 0:00:24]} 5. c3 {[%emt 0:01:17]} Bd6 {[%emt 0:02:03]} 6. Bg3 {[%emt 0:01:25]} Ne4 {[%emt 0:03:42]} 7. Bd3 {[%emt 0:01:09]} f5 {[%emt 0:04:20]} 8. Ne5 {[%emt 0:01:55]} g6 {[%emt 0:05:50]} 9. Bxe4 {[%emt 0:01:10]} fxe4 {[%emt 0:01:13]} 10. Qa4+ {[%emt 0:01:38]} Bd7 {[%emt 0:01:30]} 11. Nxd7 {[%emt 0:00:43]} Qxd7 {[%emt 0:00:05]} 12. Qxd7+ {[%emt 0:00:21]} Kxd7 {[%emt 0:00:05]} 13. Nd2 {[%emt 0:01:14]} Nc6 {[%emt 0:02:54]} 14. O-O-O {[%emt 0:02:12]} c4 {[%emt 0:01:53]} 15. Bxd6 {[%emt 0:02:56]} Kxd6 {[%emt 0:00:09]} 16. f3 {[%emt 0:00:55]} exf3 {[%emt 0:00:10]} 17. Nxf3 {[%emt 0:00:04]} h6 {[%emt 0:00:07]} 18. Rde1 {[%emt 0:01:12]} b5 {[%emt 0:08:49]} 19. e4 {[%emt 0:00:25]} Rae8 {[%emt 0:00:07]} 20. Re2 {[%emt 0:00:54]} Re7 {[%emt 0:03:18]} 21. Nh4 {[%emt 0:01:45]} Rg8 {[%emt 0:01:31]} 22. Rhe1 {[%emt 0:02:13]} Nd8 {[%emt 0:04:10]} 23. exd5 {[%emt 0:02:40]} Kxd5 {[%emt 0:00:49]} 24. Re5+ {[%emt 0:02:06]} Kc6 {[%emt 0:00:13]} 25. Kd1 {[%emt 0:01:25]} a6 {[%emt 0:04:46]} 26. a4 {[%emt 0:01:15]} Rb7 {[%emt 0:10:43]} 27. d5+ {[%emt 0:00:22]} exd5 {[%emt 0:01:29]} 28. axb5+ {[%emt 0:00:55]} axb5 {[%emt 0:01:41]} 29. Re8 {[%emt 0:00:48]} Rbg7 {[%emt 0:02:28]} 30. R1e7 {[%emt 0:02:05]} Nb7 {[%emt 0:01:12]} 31. Rxg7 {[%emt 0:01:05]} Rxg7 {[%emt 0:01:39]} 32. Re6+ {[%emt 0:00:20]} Kd7 {[%emt 0:00:05]} 33. Rxg6 {[%emt 0:00:21]} Rxg6 {[%emt 0:00:07]} 34. Nxg6 {[%emt 0:00:07]} Nc5 {[%emt 0:00:04]} 35. Ne5+ {[%emt 0:02:46]} Ke6 {[%emt 0:00:52]} 36. Nf3 {[%emt 0:00:38]} Nd3 {[%emt 0:01:31]} 37. Kc2 {[%emt 0:01:12]} Kf5 {[%emt 0:02:59]} 38. Nd4+ {[%emt 0:01:36]} Kg4 {[%emt 0:00:07]} 39. Nf3 {[%emt 0:03:11]} Nf4 {[%emt 0:03:41]} 40. Ne1 {[%emt 0:03:49]} Nh5 {[%emt 0:03:40]} 41. Kd2 {[%emt 0:01:07]} Kf4 {[%emt 0:01:06]} 42. Nf3 {[%emt 0:01:00]} Nf6 {[%emt 0:00:19]} 43. Ke2 {[%emt 0:01:24]} Ng4 {[%emt 0:02:57]} 44. h3 {[%emt 0:01:16]} Ne5 {[%emt 0:00:11]} 45. g3+ {[%emt 0:00:59]} Ke4 {[%emt 0:02:17]} 46. Nxe5 {[%emt 0:00:39]} Kxe5 {[%emt 0:00:11]} 47. Ke3 {[%emt 0:00:07]} b4 {[%emt 0:00:50]} 48. g4 {[%emt 0:00:47]} d4+ {[%emt 0:01:14]} 49. cxd4+ {[%emt 0:04:07]} Kd5 {[%emt 0:00:25]} 50. h4 {[%emt 0:01:02]} c3 {[%emt 0:00:36]} 51. bxc3 {[%emt 0:00:58]} bxc3 {[%emt 0:00:13]} 52. g5 {[%emt 0:00:02]} hxg5 {[%emt 0:01:08]} 53. hxg5 {[%emt 0:00:20]} Kc4 {[%emt 0:00:06]} 54. g6 {[%emt 0:00:27]} Kb3 {[%emt 0:00:06]} 55. g7 {[%emt 0:00:25]} c2 {[%emt 0:00:09]} 56. g8=Q+ {[%emt 0:00:16]} Kb2 {[%emt 0:00:29]} 57. Qb8+ {[%emt 0:00:16]} Kc1 {[%emt 0:01:20]} 58. Qc7 {[%emt 0:00:14]} Kd1 {[%emt 0:00:12]} 59. Qxc2+ {[%emt 0:00:07]} 1-0

[Event "ESP-ch U1700 2024"]
[Site "Albacete"]
[Date "2024.08.29"]
[Round "4.1"]
[White "El Ammari Rovira, Sara"]
[Black "Garcia-Munoz Arias, Diego"]
[Result "0-1"]
[ECO "C50"]
[WhiteElo "1652"]
[BlackElo "1696"]
[Annotator "NA RC"]
[PlyCount "58"]
[EventDate "2024.08.27"]
[EventType "swiss"]
[EventCountry "ESP"]
[SourceTitle "playchess.com"]
[Source "ChessBase"]
[SourceQuality "1"]
[TimeControl "5400+30"]

1. e4 e5 2. Nf3 Nc6 3. Bc4 Nf6 4. d3 Bc5 5. Bg5 h6 6. Bh4 d6 7. h3 a6 8. c3 Ba7 9. O-O g5 10. Bg3 g4 11. hxg4 Bxg4 12. Bh4 Rg8 13. Nbd2 Bh3 14. g3 Bxf1 15. Qb3 Qd7 16. Nxf1 Ng4 17. N1h2 Nxf2 18. Kf1 Qh3+ 19. Ke1 Qd7 20. Qxb7 Rb8 21. Qxa6 Rb6 22. Qa4 Qc8 23. g4 Nxg4 24. Nxg4 Qxg4 25. Bb5 Qxf3 26. Bxc6+ Kf8 27. Be7+ Kxe7 28. Qxa7 Rg1+ 29. Kd2 Rxb2# 0-1

[Event "ESP-ch U1700 2024"]
[Site "Albacete"]
[Date "2024.08.29"]
[Round "4.2"]
[White "Lopez Milian, Adela"]
[Black "Airos Martorell, Ignacio"]
[Result "0-1"]
[ECO "D37"]
[WhiteElo "1681"]
[BlackElo "1650"]
[Annotator "NA RC"]
[PlyCount "76"]
[EventDate "2024.08.27"]
[EventType "swiss"]
[EventCountry "ESP"]
[SourceTitle "playchess.com"]
[Source "ChessBase"]
[SourceQuality "1"]
[TimeControl "5400+30"]

1. d4 {[%emt 0:00:03]} Nf6 {[%emt 0:00:12]} 2. c4 {[%emt 0:00:05]} e6 {[%emt 0:00:42]} 3. Nc3 {[%emt 0:00:05]} d5 {[%emt 0:00:53]} 4. Nf3 {[%emt 0:00:17]} b6 {[%emt 0:02:07]} 5. Bg5 {[%emt 0:05:44]} Be7 {[%emt 0:02:02]} 6. e3 {[%emt 0:00:30]} Bb7 {[%emt 0:02:10]} 7. Be2 {[%emt 0:00:47]} O-O {[%emt 0:03:23]} 8. O-O {[%emt 0:00:21]} Nbd7 {[%emt 0:01:03]} 9. a3 {[%emt 0:03:32]} a5 {[%emt 0:01:20]} 10. Rb1 {[%emt 0:06:54]} dxc4 11. Bxc4 {[%emt 0:03:12]} Ne4 {[%emt 0:02:42]} 12. Bxe7 {[%emt 0:01:27]} Qxe7 {[%emt 0:01:08]} 13. Nxe4 {[%emt 0:24:11]} Bxe4 {[%emt 0:02:00]} 14. Bd3 {[%emt 0:00:35]} Nf6 {[%emt 0:01:19]} 15. Bxe4 {[%emt 0:01:03]} Nxe4 {[%emt 0:00:04]} 16. Qc2 {[%emt 0:00:38]} Nf6 {[%emt 0:02:18]} 17. Qc6 {[%emt 0:03:11]} Qd6 {[%emt 0:03:58]} 18. Rbc1 {[%emt 0:01:01]} Rac8 {[%emt 0:01:31]} 19. Rc2 {[%emt 0:01:05]} Nd5 {[%emt 0:00:49]} 20. Rfc1 {[%emt 0:07:39]} Ne7 {[%emt 0:00:16]} 21. Qb7 {[%emt 0:04:08]} c5 {[%emt 0:05:27]} 22. dxc5 {[%emt 0:01:19]} Rxc5 {[%emt 0:00:10]} 23. Rxc5 {[%emt 0:00:56]} bxc5 {[%emt 0:00:32]} 24. Qb5 {[%emt 0:01:36]} Rb8 {[%emt 0:01:58]} 25. Qxc5 {[%emt 0:02:15]} Qxc5 {[%emt 0:00:18]} 26. Rxc5 {[%emt 0:00:05]} Rxb2 {[%emt 0:00:03]} 27. g3 {[%emt 0:01:12]} f6 {[%emt 0:02:53]} 28. Rxa5 {[%emt 0:00:12]} e5 {[%emt 0:00:33]} 29. h4 {[%emt 0:05:44]} Nf5 {[%emt 0:00:54]} 30. Ra6 {[%emt 0:02:20]} Rb1+ {[%emt 0:00:34]} 31. Kg2 {[%emt 0:00:36]} Rb2 {[%emt 0:00:40]} 32. Kf1 {[%emt 0:00:27]} e4 {[%emt 0:01:54]} 33. Nh2 {[%emt 0:08:21]} Nxe3+ {[%emt 0:00:25]} 34. fxe3 {[%emt 0:02:00]} Rxh2 35. Ra7 Rh1+ 36. Kf2 Ra1 37. a4 Ra2+ 38. Ke1 Ra3 0-1

[Event "ESP-ch U1700 2024"]
[Site "Albacete"]
[Date "2024.08.29"]
[Round "4.3"]
[White "Molina Gomez, Juan Francisco"]
[Black "Jimenez Fernandez, Alejandro"]
[Result "0-1"]
[ECO "C30"]
[WhiteElo "1677"]
[BlackElo "1956"]
[Annotator "RC"]
[PlyCount "54"]
[EventDate "2024.08.27"]
[EventType "swiss"]
[EventCountry "ESP"]
[SourceTitle "playchess.com"]
[Source "ChessBase"]
[SourceQuality "1"]
[TimeControl "5400+30"]

1. e4 {[%emt 0:00:23]} e5 {[%emt 0:00:07]} 2. f4 {[%emt 0:00:05]} d6 {[%emt 0:00:08]} 3. Nf3 {[%emt 0:00:09]} Nc6 {[%emt 0:00:08]} 4. Bc4 {[%emt 0:00:46]} Bg4 {[%emt 0:05:26]} 5. Bxf7+ {[%emt 0:02:15]} Kxf7 {[%emt 0:01:18]} 6. Ng5+ {[%emt 0:00:02]} Qxg5 {[%emt 0:01:11]} 7. fxg5 {[%emt 0:01:18]} Bxd1 {[%emt 0:00:18]} 8. Kxd1 {[%emt 0:00:05]} Be7 {[%emt 0:01:47]} 9. d3 {[%emt 0:00:19]} h6 {[%emt 0:00:30]} 10. Rf1+ {[%emt 0:01:16]} Ke8 {[%emt 0:00:09]} 11. h4 {[%emt 0:00:13]} hxg5 {[%emt 0:00:22]} 12. hxg5 {[%emt 0:00:26]} Rh5 {[%emt 0:00:47]} 13. g4 {[%emt 0:01:05]} Rh2 {[%emt 0:01:07]} 14. Bd2 {[%emt 0:05:06]} Rg2 {[%emt 0:00:34]} 15. Nc3 {[%emt 0:00:44]} Rc8 {[%emt 0:04:13]} 16. Nd5 Rxg4 {[%emt 0:01:23]} 17. Nxe7 {[%emt 0:06:11]} Ngxe7 {[%emt 0:00:11]} 18. c3 {[%emt 0:00:30]} Ng6 {[%emt 0:02:58]} 19. Kc2 {[%emt 0:04:55]} Nf4 {[%emt 0:02:44]} 20. d4 {[%emt 0:04:09]} Kd7 {[%emt 0:05:35]} 21. dxe5 {[%emt 0:00:48]} dxe5 {[%emt 0:00:13]} 22. Rad1 {[%emt 0:00:21]} Ke6 {[%emt 0:00:33]} 23. b4 {[%emt 0:04:51]} Rd8 {[%emt 0:02:18]} 24. Rde1 {[%emt 0:05:02]} Rg2 {[%emt 0:00:38]} 25. Rd1 {[%emt 0:01:42]} Nh3 {[%emt 0:04:42]} 26. b5 {[%emt 0:04:18]} Ne7 {[%emt 0:05:34]} 27. Kc1 {[%emt 0:06:32]} Nf2 {[%emt 0:02:26]} 0-1

[Event "ESP-ch U1700 2024"]
[Site "Albacete"]
[Date "2024.08.29"]
[Round "4.4"]
[White "Perez Fernandez, Alvaro"]
[Black "Grande Gonzalez, Julen"]
[Result "1-0"]
[ECO "D00"]
[WhiteElo "1638"]
[BlackElo "1692"]
[Annotator "NA RC"]
[PlyCount "57"]
[EventDate "2024.08.27"]
[EventType "swiss"]
[EventCountry "ESP"]
[SourceTitle "playchess.com"]
[Source "ChessBase"]
[SourceQuality "1"]
[TimeControl "5400+30"]

1. d4 {[%emt 0:00:01]} d5 {[%emt 0:00:08]} 2. Bf4 {[%emt 0:00:59]} Nf6 {[%emt 0:00:18]} 3. e3 {[%emt 0:00:49]} c5 {[%emt 0:00:51]} 4. dxc5 {[%emt 0:00:54]} Nc6 {[%emt 0:03:49]} 5. Bb5 {[%emt 0:01:24]} Qa5+ {[%emt 0:05:35]} 6. Nc3 {[%emt 0:00:48]} a6 {[%emt 0:03:50]} 7. Ba4 {[%emt 0:04:56]} Qxc5 {[%emt 0:03:19]} 8. Nf3 {[%emt 0:05:05]} e6 {[%emt 0:14:18]} 9. O-O Be7 {[%emt 0:04:29]} 10. a3 {[%emt 0:15:52]} O-O {[%emt 0:06:34]} 11. Qd3 {[%emt 0:02:23]} Rd8 {[%emt 0:12:52]} 12. Bxc6 {[%emt 0:10:26]} bxc6 {[%emt 0:06:53]} 13. Bc7 {[%emt 0:02:02]} Re8 {[%emt 0:08:01]} 14. b4 {[%emt 0:06:55]} Qa7 {[%emt 0:01:33]} 15. Ba5 {[%emt 0:04:28]} Bd6 {[%emt 0:04:25]} 16. e4 {[%emt 0:07:36]} Qb8 {[%emt 0:01:26]} 17. Rfe1 Ng4 18. exd5 {[%emt 0:09:29]} Bxh2+ {[%emt 0:05:28]} 19. Kf1 {[%emt 0:01:21]} Bd7 {[%emt 0:01:56]} 20. dxe6 {[%emt 0:03:21]} Bxe6 {[%emt 0:01:35]} 21. Ng5 {[%emt 0:00:39]} Qf4 {[%emt 0:02:03]} 22. Qxh7+ {[%emt 0:02:25]} Kf8 {[%emt 0:00:01]} 23. Qh8+ {[%emt 0:00:48]} Ke7 {[%emt 0:00:06]} 24. Rxe6+ {[%emt 0:00:05]} Kd7 {[%emt 0:07:23]} 25. Rd1+ {[%emt 0:00:20]} Kc8 {[%emt 0:01:01]} 26. Qxe8+ {[%emt 0:00:29]} Kb7 {[%emt 0:00:43]} 27. Rd7+ {[%emt 0:00:16]} Qc7 {[%emt 0:00:17]} 28. Rxc7+ {[%emt 0:00:05]} Bxc7 {[%emt 0:00:03]} 29. Qxc6+ {[%emt 0:00:09]} 1-0

[Event "ESP-ch U1700 2024"]
[Site "Albacete"]
[Date "2024.08.29"]
[Round "4.5"]
[White "Varela Cano, Hugo"]
[Black "Loro Garcia de Leon, Jose Juan"]
[Result "1-0"]
[ECO "B90"]
[WhiteElo "1691"]
[BlackElo "1643"]
[Annotator "NA RC"]
[PlyCount "85"]
[EventDate "2024.08.27"]
[EventType "swiss"]
[EventCountry "ESP"]
[SourceTitle "playchess.com"]
[Source "ChessBase"]
[SourceQuality "1"]
[TimeControl "5400+30"]

1. e4 {[%emt 0:00:13]} c5 {[%emt 0:00:38]} 2. Nf3 {[%emt 0:00:15]} d6 {[%emt 0:00:01]} 3. d4 {[%emt 0:01:20]} cxd4 {[%emt 0:00:16]} 4. Nxd4 {[%emt 0:00:08]} Nf6 {[%emt 0:01:14]} 5. Nc3 {[%emt 0:00:54]} a6 {[%emt 0:00:39]} 6. Be3 {[%emt 0:04:23]} g6 {[%emt 0:01:10]} 7. Be2 {[%emt 0:02:41]} Bg7 {[%emt 0:00:28]} 8. O-O {[%emt 0:05:10]} O-O {[%emt 0:00:19]} 9. f3 {[%emt 0:04:06]} Bd7 {[%emt 0:02:31]} 10. Qd2 {[%emt 0:01:15]} Nc6 {[%emt 0:00:32]} 11. Nxc6 {[%emt 0:09:10]} Bxc6 {[%emt 0:01:53]} 12. Kh1 {[%emt 0:02:10]} b5 {[%emt 0:03:57]} 13. a3 {[%emt 0:03:03]} Nd7 {[%emt 0:09:24]} 14. Bh6 {[%emt 0:05:14]} Ne5 {[%emt 0:04:36]} 15. Bxg7 {[%emt 0:01:08]} Kxg7 {[%emt 0:00:02]} 16. f4 {[%emt 0:06:03]} Nd7 {[%emt 0:00:47]} 17. Bf3 {[%emt 0:05:49]} Qc7 {[%emt 0:04:32]} 18. Rae1 {[%emt 0:06:33]} f6 {[%emt 0:01:49]} 19. Ne2 {[%emt 0:10:24]} Rad8 {[%emt 0:02:21]} 20. Nd4 {[%emt 0:02:37]} Kf7 {[%emt 0:02:20]} 21. Nxc6 {[%emt 0:06:16]} Qxc6 {[%emt 0:00:31]} 22. e5 {[%emt 0:00:08]} Qc7 {[%emt 0:03:24]} 23. e6+ {[%emt 0:00:26]} Kg7 {[%emt 0:00:18]} 24. exd7 {[%emt 0:00:13]} Rxd7 {[%emt 0:00:36]} 25. Re6 {[%emt 0:02:15]} a5 {[%emt 0:07:40]} 26. Rfe1 {[%emt 0:01:53]} Rf7 {[%emt 0:03:40]} 27. Bd5 {[%emt 0:03:57]} Kf8 {[%emt 0:03:34]} 28. R1e3 {[%emt 0:01:39]} b4 {[%emt 0:04:05]} 29. axb4 {[%emt 0:01:48]} axb4 {[%emt 0:00:32]} 30. Rb3 {[%emt 0:00:41]} Qa5 {[%emt 0:04:44]} 31. Rxb4 {[%emt 0:01:22]} Kg7 {[%emt 0:03:01]} 32. h3 {[%emt 0:00:40]} Rc7 {[%emt 0:01:52]} 33. Rd4 {[%emt 0:01:11]} Qb6 {[%emt 0:02:25]} 34. Bb3 {[%emt 0:00:30]} Qa7 {[%emt 0:05:04]} 35. f5 {[%emt 0:02:59]} g5 {[%emt 0:01:34]} 36. h4 {[%emt 0:00:27]} h6 {[%emt 0:02:09]} 37. Ra4 {[%emt 0:00:54]} Qc5 {[%emt 0:01:50]} 38. Rc4 {[%emt 0:01:44]} Qa7 {[%emt 0:00:48]} 39. Rxc7 {[%emt 0:00:15]} Qxc7 {[%emt 0:00:02]} 40. Qe2 {[%emt 0:00:16]} Qc5 {[%emt 0:02:21]} 41. Qh5 {[%emt 0:02:12]} Qxf5 {[%emt 0:00:49]} 42. Qxf7+ {[%emt 0:00:20]} Kh8 {[%emt 0:01:26]} 43. Qe8+ 1-0

[Event "ESP-ch U1700 2024"]
[Site "Albacete"]
[Date "2024.08.29"]
[Round "4.6"]
[White "Saiz Alonso de Armino, Daniel"]
[Black "Pecero Rebato, Diego"]
[Result "1-0"]
[ECO "D02"]
[WhiteElo "1689"]
[BlackElo "1640"]
[Annotator "NA RC"]
[PlyCount "33"]
[EventDate "2024.08.27"]
[EventType "swiss"]
[EventCountry "ESP"]
[SourceTitle "playchess.com"]
[Source "ChessBase"]
[SourceQuality "1"]
[TimeControl "5400+30"]

1. d4 {[%emt 0:00:19]} d5 {[%emt 0:02:12]} 2. Nf3 {[%emt 0:00:33]} Nf6 {[%emt 0:00:25]} 3. Bf4 {[%emt 0:00:28]} e6 {[%emt 0:00:40]} 4. e3 {[%emt 0:00:51]} Bd6 {[%emt 0:00:35]} 5. Bg3 {[%emt 0:00:06]} c5 {[%emt 0:01:42]} 6. c3 {[%emt 0:00:29]} Nc6 {[%emt 0:01:45]} 7. Bd3 {[%emt 0:01:02]} b6 {[%emt 0:04:35]} 8. Nbd2 {[%emt 0:00:14]} Bb7 {[%emt 0:02:37]} 9. e4 {[%emt 0:01:50]} dxe4 {[%emt 0:07:26]} 10. Nxe4 {[%emt 0:00:14]} Nxe4 {[%emt 0:00:48]} 11. Bxe4 {[%emt 0:00:11]} Rc8 {[%emt 0:04:30]} 12. dxc5 {[%emt 0:01:27]} Bxc5 {[%emt 0:01:36]} 13. Qa4 {[%emt 0:00:08]} O-O {[%emt 0:02:33]} 14. Rd1 {[%emt 0:00:26]} Qe8 {[%emt 0:06:23]} 15. Bxh7+ {[%emt 0:00:21]} Kxh7 {[%emt 0:05:32]} 16. Qh4+ {[%emt 0:00:10]} Kg6 {[%emt 0:00:12]} 17. Qg5+ {[%emt 0:00:07]} 1-0

[Event "ESP-ch U1700 2024"]
[Site "Albacete"]
[Date "2024.08.29"]
[Round "4.7"]
[White "Acebal Fernandez, Jose Maria"]
[Black "Solanilla Olcese, Ada"]
[Result "1/2-1/2"]
[ECO "D35"]
[WhiteElo "1624"]
[BlackElo "1668"]
[Annotator "NA RC"]
[PlyCount "88"]
[EventDate "2024.08.27"]
[EventType "swiss"]
[EventCountry "ESP"]
[SourceTitle "playchess.com"]
[Source "ChessBase"]
[SourceQuality "1"]
[TimeControl "5400+30"]

1. d4 {[%emt 0:00:03]} d5 {[%emt 0:00:16]} 2. c4 {[%emt 0:00:17]} e6 {[%emt 0:00:24]} 3. Nc3 {[%emt 0:00:38]} Nf6 {[%emt 0:00:33]} 4. cxd5 {[%emt 0:00:21]} exd5 {[%emt 0:00:29]} 5. Bg5 {[%emt 0:00:44]} c6 {[%emt 0:00:53]} 6. e3 {[%emt 0:03:19]} Be7 {[%emt 0:01:02]} 7. Bd3 {[%emt 0:00:52]} Nbd7 {[%emt 0:01:21]} 8. Qc2 {[%emt 0:03:25]} O-O {[%emt 0:02:46]} 9. Nge2 {[%emt 0:01:06]} Re8 {[%emt 0:07:23]} 10. O-O {[%emt 0:02:24]} h6 {[%emt 0:03:48]} 11. Bh4 {[%emt 0:05:08]} Qc7 {[%emt 0:05:43]} 12. f3 {[%emt 0:04:37]} Bd6 {[%emt 0:04:29]} 13. e4 {[%emt 0:03:54]} dxe4 {[%emt 0:19:49]} 14. fxe4 {[%emt 0:01:24]} Bxh2+ {[%emt 0:01:17]} 15. Kh1 {[%emt 0:00:36]} Ng4 {[%emt 0:02:48]} 16. Qb3 {[%emt 0:01:35]} Ndf6 {[%emt 0:03:42]} 17. e5 {[%emt 0:01:04]} Be6 {[%emt 0:03:54]} 18. Qc2 {[%emt 0:01:12]} Ne3 {[%emt 0:04:10]} 19. Qd2 {[%emt 0:00:49]} Nxf1 {[%emt 0:01:09]} 20. Rxf1 {[%emt 0:00:10]} Ng4 {[%emt 0:00:39]} 21. Nc1 {[%emt 0:01:08]} Qd7 {[%emt 0:11:15]} 22. Be2 {[%emt 0:01:50]} Bxe5 {[%emt 0:01:39]} 23. Bxg4 {[%emt 0:04:20]} Bxg4 {[%emt 0:00:49]} 24. Nb3 {[%emt 0:01:08]} Bd6 {[%emt 0:01:27]} 25. d5 {[%emt 0:01:13]} Bb4 {[%emt 0:06:10]} 26. Qf4 {[%emt 0:01:29]} Bd6 {[%emt 0:05:14]} 27. Qc4 {[%emt 0:01:05]} cxd5 {[%emt 0:01:10]} 28. Qxd5 {[%emt 0:00:52]} Be6 {[%emt 0:00:19]} 29. Qf3 {[%emt 0:00:31]} Qc6 {[%emt 0:01:24]} 30. Ne4 {[%emt 0:00:34]} Bd5 {[%emt 0:01:31]} 31. Nf6+ {[%emt 0:00:30]} Kh8 {[%emt 0:05:09]} 32. Nxd5 {[%emt 0:00:46]} f6 {[%emt 0:02:26]} 33. Qf5 {[%emt 0:02:20]} Re5 {[%emt 0:00:56]} 34. Qg6 {[%emt 0:00:39]} Qe8 {[%emt 0:00:39]} 35. Nf4 {[%emt 0:01:13]} Re4 {[%emt 0:00:39]} 36. Qf5 {[%emt 0:01:48]} Bxf4 {[%emt 0:00:33]} 37. Rxf4 {[%emt 0:00:50]} Rxf4 {[%emt 0:00:08]} 38. Qxf4 {[%emt 0:00:10]} Qf7 {[%emt 0:00:15]} 39. Be1 {[%emt 0:01:05]} Rd8 {[%emt 0:00:32]} 40. Qf3 {[%emt 0:00:40]} Qd5 {[%emt 0:00:29]} 41. Qc3 {[%emt 0:02:02]} Qd7 {[%emt 0:00:48]} 42. Qb4 {[%emt 0:01:16]} Qc6 {[%emt 0:00:44]} 43. Nd4 {[%emt 0:01:26]} Qd5 {[%emt 0:00:32]} 44. Nf3 {[%emt 0:00:52]} Qd7 {[%emt 0:00:32]} 1/2-1/2